bitfinex-derivatives/quotes_SOLF0:USTF0_20250903
["timestamp","ask_amount","ask_price","bid_price","bid_amount"]
[1756889638220,7.34566537,209.18,209.14,4.19]
[1756889640721,7.34566537,209.18,209.13,1.75673784]
[1756889641120,7.34566537,209.18,209.14,4.21]
[1756889641324,0.03566537,209.18,209.14,4.21]
[1756889641616,0.03566537,209.18,209.13,1.75673784]
[1756889642224,7.34566537,209.18,209.14,4.21]
[1756889642821,0.03566537,209.18,209.12,1.75673784]
[1756889643027,0.03566537,209.18,209.14,1.75673784]
[1756889643428,0.03566537,209.18,209.15,4.21]
[1756889643629,0.03566537,209.18,209.17,4.21]
[1756889644031,7.31,209.24,209.17,4.21]
[1756889644219,0.03447958,209.2,209.17,4.21]
[1756889644924,0.03447958,209.2,209.16,1.75673784]
[1756889645129,0.03447958,209.2,209.17,4.21]
[1756889645529,0.03447958,209.2,209.16,1.75673784]
[1756889645727,0.03447958,209.2,209.17,4.21]
[1756889645927,0.03447958,209.2,209.16,1.75673784]
[1756889646226,0.03447958,209.2,209.17,4.21]
[1756889646430,0.03447958,209.2,209.18,1.75673784]
[1756889646631,0.03447958,209.2,209.19,4.21]
[1756889653936,5.31718403,209.32,209.19,4.21]
[1756889654243,9.28673784,209.34,209.27,1.75673784]
[1756889654440,14.60392187,209.34,209.27,1.75673784]
[1756889654643,9.28673784,209.34,209.27,1.75673784]
[1756889655336,9.28673784,209.34,209.28,0.03563015]
[1756889655536,7.53,209.34,209.28,0.03563015]
[1756889656339,12.84718403,209.34,209.28,0.03563015]
[1756889656941,7.53,209.34,209.28,0.03563015]
[1756889659549,7.53,209.32,209.14,4.00185341]
[1756889659750,7.53,209.24,209.14,4.23]
[1756889660840,0.03638098,209.21,209.14,4.23]
[1756889666954,7.53,209.17,209.07,4.23]
[1756889667751,0.03475351,209.14,209.07,4.23]
[1756889668248,3.73483556,209.13,209.07,4.23]
[1756889668452,3.73483556,209.12,209.07,4.23]
[1756889668654,3.73483556,209.11,209.07,4.23]
[1756889668854,3.73483556,209.1,209.07,4.23]
[1756889669054,3.73483556,209.09,209.07,4.23]
[1756889669254,3.73483556,209.08,209.07,4.23]
[1756889669951,3.73483556,209.08,208.89,10.66]
[1756889669952,3.73483556,209.08,209.01,4.23]
[1756889670257,7.2872781,209.07,209.01,4.23]
[1756889670454,7.2872781,209.06,208.99,4.23]
[1756889670651,3.73483556,209.05,208.99,4.23]
[1756889670852,3.73483556,209.04,208.97,4.23]
[1756889671052,3.73483556,209.03,208.97,4.23]
[1756889671249,0.03659483,209.06,208.97,4.23]
[1756889671455,3.72905514,209.05,208.97,4.23]
[1756889671654,0.03659483,209.06,208.97,4.23]
[1756889671655,3.72905514,209.04,208.97,4.23]
[1756889671856,3.72905514,209.03,208.97,4.23]
[1756889672158,0.03659483,209.06,208.97,4.23]
[1756889672357,3.72762857,209.05,208.99,4.23]
[1756889672552,3.72762857,209.04,208.98,2.74069267]
[1756889672756,3.72762857,209.03,208.98,2.74069267]
[1756889672957,0.03659483,209.06,208.99,4.23]
[1756889673151,3.72809161,209.05,208.99,4.23]
[1756889673353,3.72809161,209.04,208.98,2.74069267]
[1756889673659,3.72697233,209.03,208.97,4.23]
[1756889673959,7.56659483,209.06,208.97,4.23]
[1756889674159,3.7269797,209.05,208.97,4.23]
[1756889674348,3.7269797,209.04,208.97,4.23]
[1756889674552,3.7269797,209.03,208.97,4.23]
[1756889674848,7.56659483,209.06,208.97,4.23]
[1756889675049,3.72601855,209.05,208.97,4.23]
[1756889675256,3.72601855,209.04,208.97,4.23]
[1756889675556,7.56659483,209.06,208.97,4.23]
[1756889675758,3.72452572,209.05,208.97,4.23]
[1756889675953,3.72452572,209.04,208.97,4.23]
[1756889676153,7.56659483,209.06,208.97,4.23]
[1756889676358,3.72316501,209.05,208.97,4.23]
[1756889676559,3.72316501,209.04,208.97,4.23]
[1756889676759,7.56659483,209.06,208.97,4.23]
[1756889676961,3.72313509,209.05,208.97,4.23]
[1756889677161,3.72313509,209.04,208.97,4.23]
[1756889677361,7.56659483,209.06,208.97,4.23]
[1756889677656,7.53,209.04,208.97,4.23]
[1756889678465,3.72046673,209.03,208.97,4.23]
[1756889678667,7.53,209.04,208.97,4.23]
[1756889678859,3.72046673,209.03,208.97,4.23]
[1756889679058,7.53,209.04,208.97,4.23]
[1756889682068,3.71765662,209.03,208.97,4.23]
[1756889682267,7.53,209.04,208.97,4.23]
[1756889686370,3.71308744,209.03,208.97,4.23]
[1756889686572,7.53,209.04,208.97,4.23]
[1756889686763,3.7125954,209.03,208.97,4.23]
[1756889686962,7.53,209.04,208.97,4.23]
[1756889688575,7.53,209.04,208.94,127.24069267]
[1756889688871,2.74069267,209.09,208.94,127.24069267]
[1756889689171,0.03013895,209.01,208.95,4.23]
[1756889692671,0.03013895,209.01,208.97,2.74069267]
[1756889693178,0.03013895,209.01,208.98,4.23]
[1756889693570,0.03013895,209.01,208.97,2.74069267]
[1756889693771,0.03013895,209.01,208.98,4.23]
[1756889693965,0.03013895,209.01,208.97,2.74069267]
[1756889694567,0.03013895,209.01,208.98,4.23]
[1756889694974,0.03013895,209.01,208.97,2.74069267]
[1756889695175,0.03013895,209.01,208.98,4.23]
[1756889695872,7.82,209.12,209.01,4.23]
[1756889696070,7.82,209.12,209.05,4.23]
[1756889696071,3.7124445,209.11,209.05,4.23]
[1756889696274,3.7124445,209.1,209.04,2.74069267]
[1756889696476,7.82,209.12,209.07,2.74069267]
[1756889696675,7.82,209.12,209.08,4.23]
[1756889697376,7.82,209.17,209.08,4.23]
[1756889698078,7.82,209.17,209.1,0.03216742]
[1756889699774,7.82,209.17,209.1,2.77286009]
[1756889700380,7.82,209.17,209.1,4.29216742]
[1756889700576,7.82,209.17,209.11,2.74069267]
[1756889701383,0.03603114,209.16,209.11,2.74069267]
[1756889701577,7.85603114,209.16,209.11,2.74069267]
[1756889702384,0.03603114,209.16,209.11,2.74069267]
[1756889702585,7.82,209.15,209.11,2.74069267]
[1756889703980,7.82,209.15,208.97,3.99887988]
[1756889704178,7.82,209.15,209.03,2.74069267]
[1756889704687,0.03074313,209.11,209.09,2.74069267]
[1756889704887,7.82,209.18,209.09,2.74069267]
[1756889705089,7.82,209.18,209.12,2.74069267]
[1756889706088,7.82,209.18,209.07,44.42]
[1756889706290,7.82,209.18,209.13,2.74069267]
[1756889706490,18.16,209.25,209.04,69.70549267]
[1756889706783,7.82,209.24,209.13,2.74069267]
[1756889714500,7.84,209.21,209.08,2.74069267]
[1756889715406,2.74069267,209.22,209.04,35.72]
[1756889715603,7.84,209.21,209.09,2.74069267]
[1756889716298,7.84,209.21,209.0,66.9766]
[1756889716505,7.84,209.21,209.06,2.74069267]
[1756889716705,7.84,209.21,208.94,86.57091738]
[1756889716706,2.74069267,209.16,209.02,2.74069267]
[1756889716904,7.84,209.15,209.02,2.74069267]
[1756889717401,1.61118862,209.12,209.04,1.61118862]
[1756889717709,7.84,209.11,209.04,1.61118862]
[1756889719906,1.61118862,209.14,209.06,1.61118862]
[1756889720110,7.84,209.13,209.06,1.61118862]
[1756889721011,7.84,209.13,208.99,4.3058]
[1756889721207,7.84,209.13,209.05,1.61118862]
[1756889725115,7.84,209.11,209.05,1.61118862]
[1756889737925,7.84,209.11,208.97,8.31606154]
[1756889738128,7.84,209.11,209.04,1.61118862]
[1756889738622,7.84,209.11,209.06,1.61118862]
[1756889738929,7.84,209.11,208.98,75.96]
[1756889738930,7.84,209.14,209.08,1.61118862]
[1756889742223,7.84,209.14,209.01,4.3053]
[1756889742524,9.45118862,209.14,209.06,1.61118862]
[1756889743022,7.85,209.17,209.1,1.61118862]
[1756889744023,1.61118862,209.19,209.12,1.61118862]
[1756889744228,7.85,209.18,209.12,1.61118862]
[1756889745927,7.85,209.18,209.06,4.3045]
[1756889746126,7.85,209.19,209.13,1.61118862]
[1756889750236,7.85,209.19,209.14,0.03094525]
[1756889752131,1.61118862,209.2,209.14,0.03094525]
[1756889752338,7.85,209.19,209.14,0.03094525]
[1756889752837,9.46118862,209.21,209.14,0.03094525]
[1756889766449,7.85,209.16,209.14,0.03094525]
[1756889766939,9.46118862,209.15,209.14,0.03094525]
[1756889768747,7.85,209.15,209.08,1.61118862]
[1756889771047,7.85,209.15,209.01,4.00976154]
[1756889771251,7.85,209.15,209.08,1.61118862]
[1756889771754,0.03411931,209.14,209.08,1.61118862]
[1756889773353,7.46,209.13,209.08,1.61118862]
[1756889773553,0.03411931,209.14,209.08,1.61118862]
[1756889773952,7.46,209.13,209.08,1.61118862]
[1756889774354,0.03411931,209.14,209.08,1.61118862]
[1756889774854,0.03411931,209.14,209.09,1.61118862]
[1756889775252,7.46,209.15,209.09,1.61118862]
[1756889775446,7.46,209.13,209.09,1.61118862]
[1756889775948,0.03097882,209.14,209.09,1.61118862]
[1756889776654,0.03097882,209.14,209.13,1.61118862]
[1756889777454,7.49097882,209.14,209.08,2.74465822]
[1756889778556,7.49097882,209.14,209.04,2.74465822]
[1756889780058,7.49097882,209.14,209.07,2.74465822]
[1756889780453,7.46,209.14,209.07,2.74465822]
[1756889780650,0.03119926,209.13,209.1,2.74465822]
[1756889784256,0.03119926,209.13,209.1,3.22465822]
[1756889784656,0.03119926,209.13,209.06,4.00976154]
[1756889784853,0.03119926,209.13,209.06,2.74465822]
[1756889789168,0.03119926,209.13,209.09,2.74465822]
[1756889793769,0.03119926,209.13,209.12,2.74465822]
[1756889794168,0.03119926,209.13,209.12,7.13685058]
[1756889796170,7.46,209.22,209.12,7.13685058]
[1756889796372,7.46,209.22,209.15,2.74465822]
[1756889796572,7.46,209.22,209.16,4.39219236]
[1756889796868,7.46,209.22,209.15,2.74465822]
[1756889797074,7.46,209.22,209.16,4.39087748]
[1756889797273,7.46,209.22,209.15,2.74465822]
[1756889797472,7.46,209.22,209.16,4.39048361]
[1756889797672,7.46,209.22,209.15,2.74465822]
[1756889797873,7.46,209.22,209.16,4.39048361]
[1756889798169,7.46,209.23,209.17,4.3904412]
[1756889798375,7.46,209.23,209.15,2.74465822]
[1756889798767,7.46,209.23,209.16,4.38994781]
[1756889798966,7.46,209.23,209.15,2.74465822]
[1756889799176,7.46,209.23,209.16,4.39000242]
[1756889799473,7.46,209.23,209.15,2.74465822]
[1756889799676,7.46,209.23,209.16,4.38962616]
[1756889799875,7.46,209.23,209.17,4.38962616]
[1756889800173,7.46,209.23,209.15,2.74465822]
[1756889800369,7.46,209.23,209.16,4.38892935]
[1756889800569,6.1495407,209.25,209.18,0.03037159]
[1756889800765,7.46,209.24,209.18,0.03037159]
[1756889802277,5.31718403,209.27,209.19,4.3878352]
[1756889802469,7.88,209.26,209.18,2.77502981]
[1756889802671,7.88,209.26,209.19,4.38667747]
[1756889802870,7.88,209.26,209.18,2.77502981]
[1756889803172,13.19718403,209.26,209.18,2.77502981]
[1756889803474,7.88,209.26,209.18,2.77502981]
[1756889808180,7.88,209.26,209.21,2.74465822]
[1756889809980,7.88,209.3,209.21,2.74465822]
[1756889811082,119.6,209.31,209.12,80.61513095]
[1756889811275,7.88,209.3,209.23,0.0309071]
[1756889812977,5.31718403,209.29,209.23,0.0309071]
[1756889813179,7.88,209.28,209.23,0.0309071]
[1756889813778,13.19718403,209.28,209.23,0.0309071]
[1756889814878,7.88,209.28,209.23,0.0309071]
[1756889815577,13.19718403,209.28,209.23,0.0309071]
[1756889815782,7.88,209.26,209.23,0.0309071]
[1756889816984,7.88,209.25,209.13,0.04]
[1756889817382,13.19718403,209.25,209.13,0.04]
[1756889818278,0.03465855,209.21,209.13,0.04]
[1756889818484,7.88,209.2,209.13,0.04]
[1756889823180,7.88,209.2,209.14,4.39638847]
[1756889823388,0.03465855,209.21,209.15,7.14104669]
[1756889823584,0.03465855,209.21,209.16,4.39638847]
[1756889823787,7.88,209.24,209.18,0.04]
[1756889823988,0.03011829,209.21,209.18,0.04]
[1756889824290,0.03011829,209.21,209.15,2.74465822]
[1756889824490,0.03011829,209.21,209.17,0.04]
[1756889824687,0.03011829,209.21,209.19,0.04]
[1756889824886,0.03011829,209.21,209.2,0.04]
[1756889825083,0.03011829,209.21,209.2,4.43672592]
[1756889825287,0.03011829,209.21,209.2,0.04]
[1756889825486,0.03011829,209.21,209.2,4.43736063]
[1756889826790,0.03011829,209.21,209.2,4.43701571]
[1756889827290,0.03011829,209.21,209.2,4.39701571]
[1756889829292,0.03011829,209.21,209.17,2.78465822]
[1756889829492,0.03011829,209.21,209.19,0.04]
[1756889831288,0.03011829,209.21,209.2,4.398587]
[1756889831692,0.03011829,209.21,209.2,4.438587]
[1756889833491,0.03011829,209.21,209.2,4.398587]
[1756889833691,7.81011829,209.21,209.17,0.04]
[1756889833891,7.81011829,209.21,209.18,4.40032128]
[1756889834090,7.81011829,209.21,209.19,4.40032128]
[1756889834292,7.81011829,209.21,209.18,0.04]
[1756889834493,7.81011829,209.21,209.19,4.40114241]
[1756889834693,7.81011829,209.21,209.18,0.04]
[1756889834892,7.81011829,209.21,209.19,4.40114241]
[1756889835094,7.81011829,209.21,209.18,0.04]
[1756889835293,7.81011829,209.21,209.19,4.40114241]
[1756889835493,7.81011829,209.21,209.18,0.04]
[1756889835696,7.81011829,209.21,209.19,4.40206286]
[1756889835897,7.81011829,209.21,209.18,0.04]
[1756889836096,7.81011829,209.21,209.19,4.40206286]
[1756889836296,7.81011829,209.21,209.18,0.04]
[1756889836497,7.81011829,209.21,209.19,4.4431002]
[1756889836697,7.81011829,209.21,209.19,0.04]
[1756889837494,0.03011829,209.21,209.2,4.4442796]
[1756889840200,7.81011829,209.21,209.2,4.4042796]
[1756889842000,0.03011829,209.21,209.2,4.4042796]
[1756889842902,0.03011829,209.21,209.2,4.40737826]
[1756889843590,0.03011829,209.21,209.2,4.44737826]
[1756889847213,0.03011829,209.21,209.2,6.20247733]
[1756889856917,0.03011829,209.21,209.2,6.20692487]
[1756889866628,7.75,209.28,209.2,6.16692487]
[1756889866823,7.75,209.28,209.25,1.79509907]
[1756889867025,7.75,209.28,209.26,0.04]
[1756889868424,7.75,209.31,209.27,1.79509907]
[1756889869124,5.31718403,209.32,209.19,0.04]
[1756889869329,7.75,209.31,209.24,1.75509907]
[1756889869526,7.75,209.31,209.25,4.41218429]
[1756889869725,7.75,209.31,209.24,1.75509907]
[1756889869932,7.75,209.31,209.25,4.41165174]
[1756889870122,7.75,209.31,209.24,1.75509907]
[1756889870328,7.75,209.31,209.25,4.41165174]
[1756889870625,7.75,209.31,209.24,1.75509907]
[1756889870833,7.75,209.31,209.25,4.41103783]
[1756889871126,7.75,209.31,209.26,1.75509907]
[1756889871324,5.31718403,209.33,209.26,1.75509907]
[1756889871521,1.75509907,209.34,209.28,1.75509907]
[1756889871522,7.75,209.32,209.28,1.75509907]
[1756889871732,7.75,209.33,209.28,1.75509907]
[1756889872528,13.06718403,209.33,209.26,1.75509907]
[1756889873128,7.75,209.3,209.26,1.75509907]
[1756889873332,7.75,209.31,209.26,1.75509907]
[1756889873836,13.06718403,209.31,209.26,1.75509907]
[1756889874131,7.75,209.31,209.26,1.75509907]
[1756889874325,5.31718403,209.32,209.26,1.75509907]
[1756889874523,7.75,209.31,209.26,1.75509907]
[1756889874725,5.31718403,209.32,209.26,1.75509907]
[1756889874929,7.75,209.31,209.26,1.75509907]
[1756889875724,5.31718403,209.32,209.26,1.75509907]
[1756889876328,7.75,209.31,209.26,1.75509907]
[1756889876922,7.75,209.31,209.18,24.2219]
[1756889876923,7.75,209.31,209.28,1.79509907]
[1756889877129,5.31718403,209.33,209.28,1.79509907]
[1756889877325,7.75,209.32,209.3,1.75509907]
[1756889881340,7.75,209.34,209.31,0.04]
[1756889881641,7.75,209.34,209.32,1.75509907]
[1756889884741,7.75,209.38,209.32,1.75509907]
[1756889888839,7.75,209.37,209.34,1.75509907]
[1756889889040,7.75,209.39,209.34,1.75509907]
[1756889889239,1.75509907,209.36,209.29,1.75509907]
[1756889889443,7.75,209.35,209.29,1.75509907]
[1756889892446,7.75,209.35,209.31,1.75509907]
[1756889892645,7.59,209.38,209.31,1.75509907]
[1756889894241,7.59,209.38,209.29,0.04]
[1756889894446,7.59,209.38,209.31,1.75509907]
[1756889897046,7.59,209.36,209.31,1.75509907]
[1756889897245,1.75509907,209.37,209.31,1.75509907]
[1756889898048,7.59,209.36,209.31,1.75509907]
[1756889898444,1.75509907,209.37,209.31,1.75509907]
[1756889898649,7.59,209.36,209.31,1.75509907]
[1756889898949,1.75509907,209.37,209.31,1.75509907]
[1756889899356,7.59,209.36,209.29,0.04]
[1756889902055,7.59,209.36,209.3,4.40023355]
[1756889902255,7.59,209.36,209.29,0.04]
[1756889902449,7.59,209.36,209.3,4.4001461]
[1756889902649,7.59,209.36,209.29,0.04]
[1756889902850,7.59,209.36,209.3,4.4001461]
[1756889903050,7.59,209.36,209.29,0.04]
[1756889903253,7.59,209.36,209.3,4.4001461]
[1756889903552,7.59,209.36,209.29,0.04]
[1756889907846,7.59,209.36,209.31,2.73955018]
[1756889908046,7.59,209.4,209.32,0.04]
[1756889910549,7.59,209.4,209.29,2.73955018]
[1756889910755,7.59,209.38,209.3,4.40609263]
[1756889910948,7.59,209.38,209.28,0.04]
[1756889911148,7.59,209.38,209.29,4.40612196]
[1756889911353,7.59,209.38,209.3,4.40612196]
[1756889911554,7.59,209.38,209.28,0.04]
[1756889911756,7.59,209.38,209.29,4.40671505]
[1756889911957,7.59,209.38,209.3,4.40671505]
[1756889912157,7.59,209.38,209.28,0.04]
[1756889912359,7.59,209.38,209.3,0.04]
[1756889912556,7.59,209.38,209.31,4.40668571]
[1756889912754,7.59,209.38,209.3,0.04]
[1756889913057,7.59,209.38,209.31,4.40682951]
[1756889913257,7.59,209.38,209.3,0.04]
[1756889913455,7.59,209.38,209.31,4.40701963]
[1756889913652,7.59,209.38,209.32,4.40701963]
[1756889913859,7.59,209.38,209.3,0.04]
[1756889914059,7.59,209.38,209.31,4.40701573]
[1756889914260,7.59,209.38,209.32,4.40701573]
[1756889914457,7.59,209.38,209.3,0.04]
[1756889914757,7.59,209.38,209.31,4.40727131]
[1756889914959,7.59,209.38,209.32,4.40727131]
[1756889915156,7.59,209.38,209.3,0.04]
[1756889915356,7.59,209.38,209.31,4.40779593]
[1756889915556,7.59,209.38,209.32,4.40779593]
[1756889915757,7.59,209.38,209.33,4.40779593]
[1756889915962,7.59,209.38,209.3,0.04]
[1756889916162,7.59,209.38,209.31,4.40762779]
[1756889916356,7.59,209.38,209.32,4.40762779]
[1756889916556,7.59,209.38,209.33,4.40762779]
[1756889916759,7.59,209.38,209.3,0.04]
[1756889917058,7.59,209.38,209.31,4.40796103]
[1756889917261,7.59,209.38,209.32,4.40796103]
[1756889917455,7.59,209.38,209.33,4.40796103]
[1756889917656,7.59,209.38,209.3,0.04]
[1756889917855,7.59,209.38,209.31,4.4081678]
[1756889918053,7.59,209.38,209.32,4.4081678]
[1756889918255,7.59,209.38,209.33,4.4081678]
[1756889918454,7.59,209.38,209.3,0.04]
[1756889918663,7.59,209.38,209.31,4.40861791]
[1756889918863,7.59,209.38,209.32,4.40861791]
[1756889919061,7.59,209.38,209.33,4.40861791]
[1756889919267,7.59,209.38,209.3,0.04]
[1756889919454,7.59,209.38,209.31,4.40924716]
[1756889919655,7.59,209.38,209.32,4.40924716]
[1756889919855,7.59,209.38,209.33,4.40924716]
[1756889920065,7.59,209.38,209.3,0.04]
[1756889920266,7.59,209.38,209.31,4.40924585]
[1756889920466,7.59,209.38,209.32,4.40924585]
[1756889920665,7.59,209.38,209.33,4.40924585]
[1756889920869,7.59,209.38,209.3,0.04]
[1756889921163,7.59,209.38,209.31,4.41000459]
[1756889921358,7.59,209.38,209.32,4.41000459]
[1756889921555,7.59,209.38,209.33,4.41000459]
[1756889921760,7.59,209.38,209.3,0.04]
[1756889921966,7.59,209.38,209.31,4.4109206]
[1756889922166,7.59,209.38,209.32,4.4109206]
[1756889922363,7.59,209.38,209.33,4.4109206]
[1756889922667,7.59,209.38,209.3,0.04]
[1756889922864,7.59,209.38,209.31,4.41167781]
[1756889923066,7.59,209.38,209.32,4.41167781]
[1756889923362,7.59,209.38,209.33,4.41167781]
[1756889923567,7.59,209.38,209.34,4.41167781]
[1756889923768,7.59,209.38,209.3,0.04]
[1756889924065,7.59,209.38,209.31,4.41200975]
[1756889924266,7.59,209.38,209.32,4.41200975]
[1756889924461,7.59,209.38,209.33,4.41200975]
[1756889924668,7.59,209.38,209.34,4.41200975]
[1756889924970,7.59,209.38,209.3,0.04]
[1756889925168,7.59,209.38,209.31,4.41241181]
[1756889925368,7.59,209.38,209.32,4.41241181]
[1756889925569,7.59,209.38,209.33,4.41241181]
[1756889925768,7.59,209.38,209.34,4.41241181]
[1756889925971,7.59,209.38,209.3,0.04]
[1756889926266,7.59,209.38,209.31,4.41240335]
[1756889926472,7.84,209.35,209.32,4.41240335]
[1756889926667,7.84,209.35,209.27,0.02]
[1756889926868,7.84,209.35,209.28,4.41276316]
[1756889927067,7.84,209.35,209.29,4.41276316]
[1756889927369,2.73955018,209.36,209.3,4.41276316]
[1756889927668,7.84,209.35,209.31,4.41276316]
[1756889927860,2.73955018,209.36,209.32,4.41276316]
[1756889928063,7.84,209.35,209.28,0.02]
[1756889928260,7.84,209.35,209.29,4.41269364]
[1756889928464,2.73955018,209.36,209.3,4.41269364]
[1756889928664,2.73955018,209.36,209.31,4.41269364]
[1756889928860,2.73955018,209.36,209.32,4.41269364]
[1756889929065,7.84,209.35,209.29,0.02]
[1756889929265,7.84,209.35,209.3,4.41272803]
[1756889929467,7.84,209.35,209.31,4.41272803]
[1756889929771,7.84,209.37,209.32,4.41272803]
[1756889929976,7.84,209.37,209.29,0.02]
[1756889930281,7.84,209.37,209.3,4.41263512]
[1756889930477,7.84,209.37,209.31,4.41263512]
[1756889930678,7.84,209.37,209.32,4.41263512]
[1756889930873,7.84,209.37,209.33,4.41263512]
[1756889931175,7.84,209.37,209.29,0.02]
[1756889931377,7.84,209.37,209.3,4.41273434]
[1756889931576,7.84,209.37,209.31,4.41273434]
[1756889931776,7.84,209.37,209.32,4.41273434]
[1756889931977,7.84,209.37,209.33,4.41273434]
[1756889932179,7.84,209.37,209.29,0.02]
[1756889932378,7.84,209.37,209.3,4.41284424]
[1756889932578,7.84,209.37,209.31,4.41284424]
[1756889932782,7.84,209.37,209.32,4.41284424]
[1756889933078,7.84,209.4,209.33,4.43284424]
[1756889933269,7.84,209.4,209.34,4.41284424]
[1756889933467,7.84,209.4,209.33,0.02]
[1756889933673,7.84,209.43,209.35,0.02]
[1756889933879,7.84,209.43,209.36,4.41288191]
[1756889934173,7.84,209.43,209.37,4.41288191]
[1756889934377,7.84,209.43,209.35,0.02]
[1756889934378,7.84,209.43,209.38,4.41288191]
[1756889934574,7.84,209.43,209.35,0.02]
[1756889934774,7.84,209.43,209.36,4.41181311]
[1756889934979,7.84,209.43,209.37,4.41181311]
[1756889935278,7.84,209.43,209.35,0.02]
[1756889935479,7.84,209.43,209.36,4.41158297]
[1756889935680,7.84,209.43,209.37,4.41158297]
[1756889935880,7.84,209.43,209.38,4.41158297]
[1756889936084,7.84,209.43,209.35,0.02]
[1756889936278,7.84,209.43,209.36,4.41158197]
[1756889936473,7.84,209.43,209.37,4.41158197]
[1756889936779,13.15718403,209.43,209.31,2.75955018]
[1756889936980,13.15718403,209.43,209.32,4.41182035]
[1756889937180,13.15718403,209.43,209.33,4.41182035]
[1756889937378,13.15718403,209.43,209.34,4.41182035]
[1756889937579,13.15718403,209.43,209.35,4.41182035]
[1756889937776,13.15718403,209.43,209.36,4.41182035]
[1756889937977,13.15718403,209.43,209.31,2.75955018]
[1756889938175,5.31718403,209.42,209.32,4.41225135]
[1756889938377,5.31718403,209.42,209.33,4.41225135]
[1756889938583,7.84,209.41,209.34,4.41225135]
[1756889938781,7.84,209.41,209.35,4.41225135]
[1756889938974,7.84,209.41,209.31,2.75955018]
[1756889938975,7.84,209.41,209.36,4.41225135]
[1756889939280,7.84,209.41,209.31,2.75955018]
[1756889939480,7.84,209.41,209.32,4.41308221]
[1756889939677,7.84,209.41,209.33,4.41308221]
[1756889939883,7.84,209.41,209.34,4.41308221]
[1756889940081,7.84,209.41,209.35,4.41308221]
[1756889940283,7.84,209.41,209.36,4.41308221]
[1756889940487,7.84,209.41,209.31,2.75955018]
[1756889940677,7.84,209.41,209.32,4.41482303]
[1756889940876,7.84,209.41,209.33,4.43482303]
[1756889941180,7.84,209.41,209.35,0.02]
[1756889941379,7.84,209.41,209.36,7.15437321]
[1756889941574,7.84,209.41,209.38,0.02]
[1756889941772,7.84,209.41,209.39,4.41482303]
[1756889941972,7.84,209.41,209.38,0.02]
[1756889942376,7.84,209.41,209.36,2.73955018]
[1756889942580,7.84,209.41,209.38,0.02]
[1756889943383,5.31718403,209.43,209.38,0.02]
[1756889943681,7.84,209.42,209.38,0.02]
[1756889943984,5.31718403,209.43,209.38,0.02]
[1756889944179,7.84,209.42,209.38,0.02]
[1756889944377,7.84,209.42,209.37,0.02]
[1756889944779,13.15718403,209.43,209.37,0.02]
[1756889945583,7.84,209.43,209.37,0.02]
[1756889952087,7.62,209.44,209.38,4.41210185]
[1756889952387,7.62,209.44,209.36,2.76955018]
[1756889952589,7.62,209.44,209.37,4.41191425]
[1756889952887,7.62,209.44,209.38,4.41191425]
[1756889953083,7.62,209.44,209.36,2.76955018]
[1756889953284,7.62,209.44,209.37,4.41153939]
[1756889953484,7.62,209.44,209.36,2.76955018]
[1756889954786,7.62,209.44,209.37,0.03]
[1756889959691,7.62,209.44,209.36,2.73955018]
[1756889959692,7.62,209.46,209.36,2.73955018]
[1756889959883,12.93718403,209.46,209.36,2.73955018]
[1756889960488,7.62,209.46,209.36,2.73955018]
[1756889961596,7.62,209.46,209.39,1.75196275]
[1756889963096,12.93718403,209.46,209.39,1.75196275]
[1756889965700,7.62,209.46,209.39,1.75196275]
[1756889968100,5.31718403,209.47,209.41,1.75196275]
[1756889968701,7.62,209.46,209.41,1.75196275]
[1756889969100,5.31718403,209.47,209.41,1.75196275]